bitfinex-derivatives/quotes_ETHF0:USTF0_20251107
["timestamp","ask_amount","ask_price","bid_price","bid_amount"]
[1762476151052,0.48749,3325.0,3324.9,0.7415]
[1762476151253,0.00451093,3325.1,3325.0,0.88759]
[1762476151547,0.00451093,3325.1,3324.7,0.3743]
[1762476151751,0.48762,3324.2,3324.1,3.94942]
[1762476151947,0.48762,3324.2,3324.1,3.2078]
[1762476153161,0.2337,3323.8,3323.7,3.2078]
[1762476153356,0.48775,3323.3,3323.1,0.49227093]
[1762476154157,0.48775,3323.3,3323.1,0.00451093]
[1762476154348,0.1472,3324.0,3323.4,0.48771]
[1762476154549,0.4877,3323.6,3323.5,0.885]
[1762476155854,0.48772,3323.4,3323.3,3.69552]
[1762476156058,0.48772,3323.4,3323.3,3.94672]
[1762476156559,0.48771,3323.6,3323.5,0.2512]
[1762476156760,3.32816,3324.1,3323.5,0.1416]
[1762476156962,0.48766,3323.8,3323.7,0.48767]
[1762476157555,0.1395,3324.0,3323.5,0.3928]
[1762476157755,0.48769,3323.6,3323.5,0.2512]
[1762476158363,0.48769,3323.6,3323.5,0.73891]
[1762476159264,0.1395,3324.0,3323.5,0.73891]
[1762476159466,0.48765,3323.9,3323.7,0.48767]
[1762476159669,0.48763,3324.0,3323.5,0.1444]
[1762476159862,0.48763,3324.0,3323.9,0.2363]
[1762476160968,0.48766,3323.8,3323.7,0.2363]
[1762476161560,0.3733,3323.5,3323.3,3.2078]
[1762476161765,3.2078,3323.7,3323.6,0.2363]
[1762476161965,3.69542,3324.1,3324.0,0.48763]
[1762476162268,0.48762,3324.1,3324.0,0.48763]
[1762476162668,0.4876,3324.3,3324.2,0.2363]
[1762476163068,0.4876,3324.2,3324.1,0.48762]
[1762476163468,0.48762,3324.1,3324.0,0.1444]
[1762476163664,0.48765,3323.9,3323.8,0.2363]
[1762476164166,0.71816,3323.8,3323.7,3.2078]
[1762476164371,0.2305,3323.4,3323.3,0.48773]
[1762476164573,3.2078,3323.9,3323.1,3.21231093]
[1762476164765,0.48775,3323.2,3323.1,3.21231093]
[1762476164963,0.48775,3323.2,3323.1,3.44861093]
[1762476165276,0.71825,3323.2,3323.1,3.21231093]
[1762476166668,0.71825,3323.2,3323.1,0.00451093]
[1762476166969,0.2305,3323.2,3323.1,0.00451093]
[1762476167175,0.2305,3323.2,3323.1,0.24081093]
[1762476167176,0.60811,3323.2,3323.1,0.24081093]
[1762476167375,0.48775,3323.2,3323.1,0.24081093]
[1762476167575,3.2078,3323.4,3323.3,0.2363]
[1762476167773,0.48772,3323.4,3323.3,0.72402]
[1762476168068,0.12036,3323.8,3323.1,0.00451093]
[1762476168263,0.71825,3323.2,3323.1,0.00451093]
[1762476168875,0.83861,3323.2,3323.1,0.00451093]
[1762476169571,0.71825,3323.2,3323.1,0.00451093]
[1762476169775,0.83861,3323.2,3323.1,0.00451093]
[1762476170079,3.2078,3323.6,3323.1,0.00451093]
[1762476170080,3.32816,3323.6,3323.3,0.48771]
[1762476170274,0.12036,3323.6,3323.3,0.48771]
[1762476171171,0.48775,3323.3,3323.2,0.2363]
[1762476172579,0.48775,3323.3,3323.2,0.72405]
[1762476172976,0.48775,3323.3,3323.2,0.2363]
[1762476173174,0.71825,3323.2,3323.1,0.00451093]
[1762476174178,0.71825,3323.2,3323.1,9.3e-07]
[1762476174376,3.92605,3323.2,3323.1,9.3e-07]
[1762476174576,0.83861,3323.2,3323.1,9.3e-07]
[1762476174783,4.04641,3323.2,3323.1,9.3e-07]
[1762476181186,3.92605,3323.2,3323.1,9.3e-07]
[1762476181777,7.79305,3323.2,3323.1,9.3e-07]
[1762476181975,0.71841,3322.1,3322.0,3.2078]
[1762476182370,3.2078,3322.3,3321.6,2.14293126]
[1762476182572,3.2078,3322.3,3321.5,3.3522]
[1762476182573,0.48799,3321.6,3321.5,3.8402]
[1762476182778,0.48797,3321.7,3321.6,0.2363]
[1762476182973,0.00293225,3321.7,3321.4,0.48801]
[1762476183172,0.00293225,3321.7,3321.4,0.49085381]
[1762476184284,0.488,3321.5,3321.4,0.00284381]
[1762476185177,0.488,3321.5,3321.4,0.72716381]
[1762476185385,0.00293225,3321.7,3321.6,0.72659]
[1762476186086,0.49090225,3321.7,3321.6,0.2386]
[1762476186276,0.2484,3321.5,3321.4,0.00284381]
[1762476186481,0.00293225,3321.7,3321.6,0.72659]
[1762476186683,0.49090225,3321.7,3321.6,0.2386]
[1762476186879,0.00293225,3321.7,3321.6,0.72659]
[1762476187183,0.49090225,3321.7,3321.6,0.2386]
[1762476187387,0.488,3321.5,3321.4,0.00284381]
[1762476187588,0.8842,3321.5,3321.4,0.49086381]
[1762476187790,0.488,3321.5,3321.4,0.72946381]
[1762476188483,0.8842,3321.5,3321.4,0.00284381]
[1762476189389,0.49090225,3321.7,3321.6,0.48799]
[1762476189580,0.48799,3321.6,3321.5,0.2386]
[1762476189782,0.48799,3321.6,3321.5,0.7266]
[1762476190287,0.48799,3321.6,3321.5,0.2386]
[1762476191092,0.488,3321.5,3321.4,0.00284381]
[1762476191284,0.8842,3321.5,3321.4,0.00284381]
[1762476191782,0.8842,3321.5,3320.4,0.48816]
[1762476191783,0.48815,3320.5,3320.4,0.48816]
[1762476192282,0.48819,3320.3,3320.2,0.72679]
[1762476192490,0.48819,3320.3,3320.2,0.2386]
[1762476192684,0.48819,3320.3,3320.2,0.24241667]
[1762476193183,0.48819,3320.3,3320.2,0.49200667]
[1762476194890,0.48819,3320.3,3320.2,0.00381667]
[1762476195289,0.2484,3320.4,3320.3,0.48817]
[1762476195485,3.32826,3320.8,3320.6,0.48813]
[1762476195682,3.867,3321.9,3320.5,3.3507]
[1762476195884,0.26826,3321.5,3321.0,0.3815]
[1762476196089,0.48805,3321.2,3321.1,0.48806]
[1762476196279,0.12046,3321.5,3321.4,0.72662]
[1762476196485,3.36011093,3322.0,3321.5,0.7266]
[1762476196679,0.60841,3321.8,3321.6,0.48799]
[1762476196892,0.49090225,3321.7,3321.6,0.48799]
[1762476197388,0.00293225,3321.7,3321.6,0.48799]
[1762476197687,0.49090225,3321.7,3321.6,0.2386]
[1762476197896,0.49090225,3321.7,3321.6,0.72659]
[1762476197897,0.00293225,3321.7,3321.6,0.72659]
[1762476198188,0.48806,3321.1,3321.0,3.2078]
[1762476198488,0.48806,3321.1,3321.0,3.69587]
[1762476198884,0.48806,3321.1,3321.0,3.2078]
[1762476199086,0.73646,3321.1,3321.0,3.2078]
[1762476199692,0.73646,3321.1,3321.0,3.69587]
[1762476199887,3.2078,3321.5,3321.4,0.72662]
[1762476200092,0.12044,3321.4,3320.5,3.3507]
[1762476200288,0.48808,3321.0,3320.5,3.3507]
[1762476200488,0.48808,3321.1,3320.5,3.3507]
[1762476200692,0.48809,3321.0,3320.9,0.48807]
[1762476200897,0.48806,3321.2,3321.1,0.48805]
[1762476201094,0.12044,3321.3,3321.0,0.2386]
[1762476201095,0.48806,3321.1,3321.0,0.2386]
[1762476202389,0.48806,3321.1,3321.0,0.72667]
[1762476202789,0.00293225,3321.7,3321.0,0.1429]
[1762476202983,0.488,3321.5,3321.4,0.7266]
[1762476203488,0.48799,3321.6,3321.5,0.488]
[1762476203683,0.00293225,3321.7,3321.6,0.72659]
[1762476203889,0.49090225,3321.7,3321.6,0.2386]
[1762476205700,0.49090225,3321.7,3321.6,0.72659]
[1762476205897,0.2484,3321.5,3321.3,3.2078]
[1762476206198,0.00293225,3321.7,3321.3,3.2078]
[1762476206199,0.73641,3321.4,3321.3,3.2078]
[1762476206394,0.1478,3321.5,3320.9,3.2078]
[1762476206595,0.48798,3321.6,3321.0,0.1429]
[1762476206794,0.60844,3321.5,3321.4,0.488]
[1762476207000,0.488,3321.5,3321.4,0.488]
[1762476207199,0.60842,3321.5,3321.4,0.488]
[1762476207392,0.48804,3321.3,3321.2,0.72663]
[1762476207593,0.12042,3321.5,3321.0,0.1429]
[1762476207594,0.12042,3321.5,3321.3,0.48802]
[1762476207803,0.48801,3321.5,3321.4,0.72661]
[1762476208595,0.49091225,3321.7,3321.6,0.48798]
[1762476208800,0.00293225,3321.7,3321.6,0.72658]
[1762476209698,0.00293225,3321.7,3321.6,0.847]
[1762476210998,0.00293225,3321.7,3321.6,2.86951126]
[1762476214198,0.00293225,3321.7,3321.6,0.72658]
[1762476214593,0.12042,3322.3,3322.0,0.1423]
[1762476214792,0.48774,3323.3,3323.2,0.2518]
[1762476214996,0.48774,3323.3,3323.0,0.1423]
[1762476214997,3.2078,3323.6,3323.5,0.48771]
[1762476215194,0.12036,3324.0,3323.9,0.73945]
[1762476215398,3.2078,3324.5,3324.0,0.1423]
[1762476215598,0.48761,3324.3,3324.2,0.7394]
[1762476215798,0.48761,3324.3,3324.2,0.2518]
[1762476216006,0.73722,3324.1,3324.0,0.00359915]
[1762476216203,3.94502,3324.1,3324.0,0.00359915]
[1762476216401,4.06536,3324.1,3324.0,0.00359915]
[1762476219302,0.1413,3324.0,3323.0,0.1423]
[1762476219501,0.1413,3324.0,3323.0,0.48778]
[1762476219502,0.48777,3323.1,3323.0,0.48778]
[1762476220301,0.48777,3323.1,3323.0,0.48990942]
[1762476221102,0.73047,3323.1,3323.0,0.00212942]
[1762476221708,0.85085,3323.1,3323.0,0.00212942]
[1762476223903,4.05865,3323.1,3323.0,2.942e-05]
[1762476228006,0.48791,3322.1,3322.0,0.87323]
[1762476228211,0.48791,3322.1,3322.0,0.3853]
[1762476228711,0.48791,3322.1,3322.0,0.87323]
[1762476229012,0.49146045,3322.1,3322.0,0.87665691]
[1762476229515,0.73066,3321.8,3321.7,0.00451093]
[1762476229813,3.93846,3321.8,3321.7,0.00451093]
[1762476230014,3.2078,3321.8,3321.7,0.00451093]
[1762476230215,0.00355045,3322.1,3321.7,0.73548093]
[1762476230410,0.00355045,3322.1,3321.7,0.00451093]
[1762476230625,0.00355045,3322.1,3322.0,0.48793]
[1762476230811,0.00355045,3322.1,3321.8,0.48796]
[1762476231512,0.00355045,3322.1,3321.7,0.00814466]
[1762476231714,0.49146045,3322.1,3322.0,0.87603]
[1762476232510,0.49146045,3322.1,3322.0,0.243]
[1762476232711,0.49146045,3322.1,3322.0,0.73092]
[1762476233012,0.00355045,3322.1,3322.0,0.73092]
[1762476233604,0.00355045,3322.1,3322.0,0.87602]
[1762476234110,0.49146045,3322.1,3322.0,0.87602]
[1762476235718,0.00355045,3322.1,3322.0,0.87602]
[1762476237012,0.00451093,3322.4,3322.0,0.87602]
[1762476237216,3.2078,3323.0,3322.9,0.73079]
[1762476238111,3.21146611,3323.0,3322.9,0.73079]
[1762476239216,0.49144611,3323.0,3322.9,0.243]
[1762476239417,0.49144611,3323.0,3322.9,0.48779]
[1762476239720,0.48779,3322.9,3322.8,0.48781]
[1762476239922,0.49144611,3323.0,3322.9,0.48779]
[1762476240619,0.00366611,3323.0,3322.9,0.73079]
[1762476241613,0.48781,3322.8,3322.7,3.2078]
[1762476241820,0.48783,3322.7,3322.3,2.1441473]
[1762476242021,0.48783,3322.7,3322.6,0.243]
[1762476242320,0.00366611,3323.0,3322.9,0.73079]
[1762476242520,0.49144611,3323.0,3322.9,0.73079]
[1762476242722,0.00366611,3323.0,3322.9,0.73079]
[1762476242918,0.48784,3322.6,3322.5,0.26548]
[1762476243117,0.73055,3322.5,3322.4,3.2078]
[1762476243817,0.2427,3322.2,3322.0,0.48792]
[1762476244626,0.2617,3322.5,3321.9,3.2078]
[1762476244921,0.2617,3322.5,3322.3,0.48787]
[1762476245116,0.1204,3322.7,3322.2,0.48789]
[1762476245316,3.35276611,3323.0,3322.2,0.48789]
[1762476245523,0.48791,3322.1,3322.0,0.88241]
[1762476245724,0.48787,3322.4,3322.3,0.48788]
[1762476245924,0.4879,3322.2,3322.1,0.4879]
[1762476246322,0.4879,3322.2,3322.0,0.1415]
[1762476246521,0.4879,3322.2,3322.1,0.48791]
[1762476248330,0.1204,3322.4,3321.9,5.3519473]
[1762476248539,3.2078,3322.6,3322.5,0.74085]
[1762476248730,0.60822,3322.7,3322.6,0.48784]
[1762476249731,0.6082,3322.7,3322.6,0.48784]
[1762476250831,3.81962611,3323.0,3322.9,0.253]
[1762476251026,3.69924611,3323.0,3322.9,0.253]
[1762476252337,3.69924611,3323.0,3322.9,0.74079]
[1762476252338,0.00366611,3323.0,3322.9,0.74079]
[1762476252632,0.00366611,3323.0,3322.9,0.86117]
[1762476252824,0.00451093,3323.3,3323.2,0.74075]
[1762476253138,0.00451093,3323.3,3323.2,2.88785618]
[1762476253337,3.2078,3323.9,3323.8,0.74066]
[1762476253836,0.48763,3324.1,3324.0,0.74063]
[1762476254031,0.49057274,3324.1,3324.0,0.74063]
[1762476255836,0.00294274,3324.1,3324.0,0.88213]
[1762476256530,0.00451093,3324.4,3324.0,0.88213]
[1762476256531,0.00451093,3324.4,3324.3,0.74059]
[1762476257629,0.00754896,3324.4,3324.3,0.74388835]
[1762476259739,0.49511896,3324.4,3324.3,0.00329835]
[1762476260035,0.00754896,3324.4,3324.3,0.25629835]
[1762476260237,0.00754896,3324.4,3324.3,0.74388835]
[1762476261741,3.3455,3325.5,3325.0,0.3945]
[1762476261928,0.48746,3325.2,3325.1,0.253]
[1762476262731,0.48956693,3325.2,3325.1,0.74047]
[1762476262932,0.48956693,3325.2,3325.1,0.253]
[1762476263735,0.48757,3324.4,3324.3,3.21109835]
[1762476263931,0.72887,3324.4,3324.3,3.21109835]
[1762476264543,0.72887,3324.4,3324.3,0.00329835]
[1762476264838,3.93667,3324.4,3324.3,0.00329835]
[1762476265029,4.05699001,3324.4,3324.3,0.00329835]
[1762476265642,0.84919001,3324.4,3324.3,0.00329835]
[1762476266143,4.05699001,3324.4,3324.3,0.00329835]
[1762476266938,0.72896,3323.8,3323.7,0.00451093]
[1762476267346,0.12034,3324.1,3324.0,0.74063]
[1762476267635,0.48756,3324.5,3324.0,3.3493]
[1762476267841,0.48757,3324.4,3324.3,0.74058]
[1762476268043,0.48757,3324.4,3324.3,0.25522913]
[1762476268435,0.72887,3324.4,3324.3,0.00222913]
[1762476269044,0.48757,3324.4,3324.3,0.00222913]
[1762476269345,0.12032001,3324.6,3324.3,0.48981913]
[1762476269535,0.48754,3324.7,3324.6,0.74054]
[1762476269740,0.48754,3324.7,3324.6,0.253]
[1762476270149,0.48754,3324.7,3324.6,0.74054]
[1762476270647,0.48756,3324.5,3324.4,3.2078]
[1762476272141,0.72887,3324.4,3324.3,0.00222913]
[1762476272743,0.84919001,3324.4,3324.3,0.00222913]
[1762476274940,0.72566,3323.8,3323.7,0.00451093]
[1762476275137,3.93346,3323.8,3323.7,0.00451093]
[1762476275941,3.93346,3323.8,3323.7,0.00714582]
[1762476277245,0.72581,3322.8,3322.7,3.69562]
[1762476277550,0.72581,3322.8,3322.7,3.2078]
[1762476278044,0.72581,3322.8,3322.7,3.2100352]
[1762476278246,0.72815583,3322.8,3322.7,3.2100352]
[1762476278547,0.72815583,3322.8,3322.7,0.0022352]
[1762476279446,0.00234583,3322.8,3322.7,0.4900552]
[1762476279647,0.00234583,3322.8,3322.7,0.7301552]
[1762476280048,0.00234583,3322.8,3322.7,8.8505352]
[1762476280251,0.00234583,3322.8,3322.7,0.8505352]
[1762476280447,0.00234583,3322.8,3322.7,8.8505352]
[1762476280751,0.00451093,3323.1,3323.0,0.87988]
[1762476280950,3.2078,3323.8,3323.5,0.152]
[1762476281346,3.2078,3323.8,3323.7,0.2401]
[1762476281546,0.48769,3323.6,3323.5,0.6397]
[1762476281850,3.21145012,3323.8,3323.7,0.2401]
[1762476282646,0.48769,3323.6,3323.5,0.6397]
[1762476282846,0.48769,3323.6,3323.5,0.152]
[1762476283046,0.48769,3323.6,3323.5,0.3921]
[1762476284655,0.48769,3323.6,3323.5,0.8798]
[1762476288653,0.00365012,3323.8,3323.7,0.72778]
[1762476288854,0.49131012,3323.8,3323.7,0.72778]
[1762476289051,0.00365012,3323.8,3323.7,0.72778]
[1762476289249,0.49131012,3323.8,3323.7,0.72778]
[1762476289764,0.00365012,3323.8,3323.7,0.72778]
[1762476290959,0.48758,3324.4,3324.3,0.72769]
[1762476291264,0.48755,3324.7,3324.6,0.48755]
[1762476291453,0.48755,3324.7,3324.6,0.72765]
[1762476291654,0.48755,3324.6,3324.5,0.87965]
[1762476291956,0.00278002,3324.6,3324.5,0.87965]
[1762476292756,0.49033002,3324.6,3324.5,0.3921]
[1762476293264,0.49033002,3324.6,3324.5,0.87966]
[1762476293762,0.00278002,3324.6,3324.5,0.87966]
[1762476300662,0.00451093,3324.9,3324.8,0.72762]
[1762476301670,0.00785254,3324.9,3324.8,0.72762]
[1762476302566,0.2358,3324.3,3324.2,0.00451093]
[1762476302866,0.1401,3324.5,3323.5,0.2723]
[1762476302867,0.72347,3323.8,3323.5,3.2078]
[1762476303166,3.3479,3324.5,3324.2,0.48761]
[1762476303364,0.12034,3324.4,3324.3,0.48759]
[1762476303669,0.48759,3324.3,3324.2,0.48759]
[1762476303872,0.48759,3324.3,3324.2,0.72769]
[1762476304074,0.2358,3324.5,3324.0,0.15651093]
[1762476304277,0.12032001,3324.8,3324.7,0.48753]
[1762476304467,0.48753,3324.7,3324.6,0.2401]
[1762476304665,3.33597255,3324.9,3324.6,0.2401]
[1762476304966,0.48753,3324.8,3324.7,0.48753]
[1762476305273,0.00785254,3324.9,3324.5,0.48755]
[1762476305468,0.12032001,3324.8,3324.5,0.48755]
[1762476305677,0.00785254,3324.9,3324.7,0.2492]
[1762476305969,0.00785254,3324.9,3324.8,0.73672]
[1762476307768,0.00785254,3324.9,3324.7,0.2492]
[1762476307970,0.00785254,3324.9,3324.8,0.73672]
[1762476308369,0.48752,3324.8,3324.7,3.69533]
[1762476308569,0.48752,3324.8,3324.7,3.2078]
[1762476308767,0.48756,3324.6,3324.3,5.34791638]
[1762476308973,0.48757,3324.5,3324.3,3.2078]
[1762476309566,0.2504,3324.6,3324.3,3.2078]
[1762476309765,0.48754,3324.7,3324.6,0.48755]
[1762476310378,0.12032001,3324.7,3324.6,0.48755]
[1762476310674,0.00785254,3324.9,3324.8,0.73672]
[1762476311067,0.49536254,3324.9,3324.8,0.73672]
[1762476311264,0.48758,3324.4,3324.2,2.14011638]
[1762476311468,0.73798,3324.4,3324.3,0.48759]
[1762476311768,0.12032001,3324.6,3324.1,3.2078]
[1762476311973,0.12032001,3324.6,3324.0,0.00451093]
[1762476311974,0.48762,3324.1,3324.0,0.00451093]
[1762476312278,0.1377,3324.5,3323.5,0.48771]
[1762476312279,0.73811,3323.6,3323.5,0.48771]
[1762476312476,0.48772,3323.5,3323.3,0.48773]
[1762476312673,0.48765,3323.9,3323.5,0.48771]
[1762476312880,0.48771,3323.5,3323.3,3.2078]
[1762476313383,0.2504,3323.4,3323.3,3.2078]
[1762476313673,0.2504,3323.2,3323.1,0.00451093]
[1762476313873,0.12036,3323.4,3323.1,3.70008093]
[1762476314075,0.2504,3323.2,3323.1,3.21231093]
[1762476315271,0.48774,3323.3,3323.2,0.48775]
[1762476315577,3.2078,3323.9,3323.6,0.48769]
[1762476315775,3.2078,3323.9,3323.4,0.48771]
[1762476315776,0.4877,3323.6,3323.4,0.48771]
[1762476315979,0.12036,3323.8,3323.3,0.2492]
[1762476316272,0.48775,3323.3,3323.1,3.70007093]
[1762476316581,0.48775,3323.3,3323.1,0.49228093]
[1762476316976,0.2504,3323.2,3323.1,0.00451093]
[1762476317178,0.48775,3323.2,3323.1,0.49227093]
[1762476317477,0.73815,3323.2,3323.1,0.49228093]
[1762476317877,0.2504,3323.2,3323.1,0.49228093]
[1762476318072,0.1377,3323.5,3323.1,0.00451093]
[1762476318266,3.2078,3323.9,3323.1,3.21231093]
[1762476318672,0.60803,3323.8,3323.7,0.48768]
[1762476318874,3.2078,3323.9,3323.8,0.73687]
[1762476319183,0.48764,3324.0,3323.9,0.73685]
[1762476319372,0.48762,3324.2,3324.1,0.48761]
[1762476319678,0.48764,3324.0,3323.9,0.73683]
[1762476320077,0.73808,3323.7,3323.6,3.2078]
[1762476320284,0.2504,3323.5,3323.4,0.48773]
[1762476320579,0.2504,3323.5,3323.2,8.376]
[1762476320776,3.2078,3323.9,3323.2,8.376]
[1762476320974,0.48774,3323.3,3323.2,8.376]
[1762476321377,0.48772,3323.5,3323.4,0.48772]
[1762476321572,3.2078,3323.9,3323.8,0.73687]
[1762476321873,0.2504,3323.7,3323.4,0.48771]
[1762476322073,0.48774,3323.3,3323.2,8.376]
[1762476322274,0.73815,3323.2,3323.1,0.00451093]
[1762476322775,0.12036,3323.2,3323.1,3.70008093]
[1762476323078,0.12036,3323.4,3323.2,0.48775]
[1762476323280,0.48775,3323.2,3323.1,0.49228093]
[1762476323579,0.12036,3323.4,3323.2,0.48775]
[1762476323983,0.48771,3323.5,3323.4,0.2492]
[1762476324285,0.48775,3323.3,3323.1,3.21231093]
[1762476324580,0.48775,3323.3,3323.2,0.48775]
[1762476324780,1.18370549,3323.2,3323.1,3.21231093]
[1762476324981,0.48775,3323.2,3323.1,3.70008093]
[1762476325182,0.81294549,3323.2,3323.1,3.70008093]
[1762476325778,0.81294549,3323.2,3323.1,0.00451093]
[1762476325779,1.06334549,3323.2,3323.1,0.00451093]
[1762476326383,1.18370549,3323.2,3323.1,0.00451093]
[1762476326582,1.18370549,3323.2,3323.1,0.49228093]
[1762476326881,0.32519549,3323.2,3323.1,0.74148093]
[1762476327781,0.81294549,3323.2,3323.1,0.25371093]
[1762476327987,1.06334549,3323.2,3323.1,0.00451093]
[1762476328486,1.18370549,3323.2,3323.1,0.00451093]
[1762476329483,0.73821,3322.8,3322.7,0.0022352]
[1762476329784,0.2504,3322.1,3322.0,0.48792]
[1762476329981,0.2504,3322.1,3321.6,9.192]
[1762476329982,0.48797,3321.7,3321.6,9.67998]
[1762476330183,0.48797,3321.7,3321.6,0.48798]
[1762476330578,0.81316549,3321.7,3321.6,0.48798]
[1762476330776,0.81527208,3321.7,3321.6,0.00373571]
[1762476331179,0.81527208,3321.7,3321.6,0.49172571]
[1762476331487,1.06567208,3321.7,3321.6,0.00373571]
[1762476332181,0.57770208,3321.7,3321.6,0.49172571]
[1762476332385,0.81527208,3321.7,3321.6,0.00373571]
[1762476332584,1.06567208,3321.7,3321.6,0.00373571]
[1762476332789,1.18609208,3321.7,3321.6,0.00373571]
[1762476332989,0.32730208,3321.7,3321.6,0.25293571]
[1762476333782,0.32730208,3321.7,3321.6,0.74092571]
[1762476335081,0.32730208,3321.7,3321.6,0.86134571]
[1762476335987,0.32730208,3321.7,3321.6,0.74092571]
[1762476336287,0.32730208,3321.7,3321.6,0.74032571]
[1762476336979,0.32730208,3321.7,3321.6,0.86074571]
[1762476338491,3.2078,3323.1,3322.0,0.1408]
[1762476338691,0.48777,3323.1,3323.0,0.48777]
[1762476339197,0.60815,3323.1,3323.0,0.48777]
[1762476339492,0.61095388,3323.1,3323.0,0.48777]
[1762476340193,0.12318388,3323.1,3323.0,0.48777]
[1762476340595,0.48778,3323.0,3322.9,0.4878]
[1762476341194,3.56208388,3323.1,3323.0,0.48778]
[1762476342088,0.35428388,3323.1,3323.0,0.48778]
[1762476342489,0.84205388,3323.1,3323.0,0.48778]
[1762476342690,0.35428388,3323.1,3323.0,0.48778]
[1762476342893,0.84205388,3323.1,3323.0,0.48778]
[1762476343595,0.35428388,3323.1,3323.0,0.48778]
[1762476343993,0.72167388,3323.1,3323.0,0.48778]
[1762476344299,0.84205388,3323.1,3323.0,0.48778]
[1762476344690,0.35428388,3323.1,3323.0,0.48778]
[1762476345496,0.00280388,3323.1,3323.0,0.87488]
[1762476345891,0.48778,3323.0,3322.8,0.48781]
[1762476346087,0.00280388,3323.1,3323.0,0.3871]
[1762476346292,0.00280388,3323.1,3323.0,0.87488]
[1762476346996,0.00280388,3323.1,3323.0,0.99526]
[1762476347694,3.88e-06,3323.1,3323.0,0.99526]
[1762476348592,3.88e-06,3323.1,3323.0,1.24092335]
[1762476349200,0.00451093,3323.4,3323.3,0.73404]
[1762476349593,0.48761,3324.2,3324.1,0.73391]
[1762476349795,0.48761,3324.2,3324.0,0.105]
[1762476349796,0.48762,3324.1,3324.0,0.59264]
[1762476350098,4.04684,3324.3,3324.2,0.48761]
[1762476350491,4.04941047,3324.3,3324.2,0.00247839]
[1762476350892,4.04941047,3324.3,3324.2,0.49008839]
[1762476351898,0.84161047,3324.3,3324.2,0.00247839]
[1762476352490,0.84161047,3324.3,3323.7,3.2078]
[1762476352491,0.2311,3323.6,3323.5,0.4877]
[1762476352797,0.71882,3323.4,3323.3,3.2078]
[1762476352988,0.71887,3323.1,3323.0,0.00451093]
[1762476353492,0.71887,3323.1,3323.0,0.00714655]
[1762476354197,0.83925,3323.1,3323.0,0.00714655]
[1762476354900,4.04705,3323.1,3323.0,0.00714655]
[1762476356693,4.04705,3323.1,3322.3,3.2078]
[1762476356902,0.71897,3322.4,3322.3,3.2078]
[1762476357097,0.1391,3323.0,3322.3,3.2078]
[1762476357500,0.1391,3323.0,3322.5,0.48786]
[1762476357698,0.48783,3322.7,3322.6,0.48784]
[1762476358501,0.2311,3322.8,3322.3,3.21519608]
[1762476358707,0.71891,3322.8,3322.7,0.48783]
[1762476359607,0.4878,3322.9,3322.8,0.7341]
[1762476360300,0.4878,3322.9,3322.8,0.73411]
[1762476360503,0.00451093,3323.0,3322.6,0.60822]
[1762476360504,0.48783,3322.7,3322.6,0.60822]
[1762476360706,0.48783,3322.7,3322.5,0.1408]
[1762476360707,0.12489093,3323.0,3322.9,0.4878]
[1762476360908,0.00451093,3323.0,3322.9,0.7341]
[1762476361204,0.00451093,3323.0,3322.9,0.85448]
[1762476361703,0.7189,3322.9,3322.8,3.2078]
[1762476361898,0.00451093,3323.0,3322.9,0.4878]
[1762476362099,0.00451093,3323.0,3322.9,0.7341]
[1762476362406,0.00451093,3323.0,3322.9,0.85448]
[1762476362609,0.00451093,3323.0,3322.9,8.85448]
[1762476363601,3.2078,3323.9,3323.8,0.73397]
[1762476363797,6.67057047,3324.3,3323.7,3.2078]
[1762476363798,3.21037047,3324.3,3323.7,3.2078]
[1762476363994,3.21037047,3324.3,3324.2,0.48761]
[1762476364201,0.00257047,3324.3,3324.2,0.73391]
[1762476365104,0.00451093,3324.6,3324.5,0.88396]
[1762476365404,0.00451093,3324.6,3324.5,4.09176]
[1762476365907,0.00451093,3324.6,3324.5,4.21208]
[1762476366109,0.00761041,3324.6,3324.5,4.21208]
[1762476367401,0.12032001,3325.7,3325.5,0.48741]
[1762476367707,0.48741,3325.6,3325.1,3.2078]
[1762476368302,0.0028088,3325.6,3325.1,3.69878877]
[1762476368510,0.0028088,3325.6,3325.4,0.48743]
[1762476369009,0.0028088,3325.6,3325.5,0.2453]
[1762476369811,0.48743,3325.4,3325.1,3.21131877]
[1762476370701,0.48743,3325.4,3325.1,0.00351877]
[1762476370902,0.48743,3325.4,3325.1,3.21131877]
[1762476371409,0.4902188,3325.6,3325.3,0.2453]
[1762476371607,0.1392,3325.5,3325.1,3.21131877]
[1762476371906,0.0028088,3325.6,3325.5,0.73272]
[1762476372096,0.0028088,3325.6,3325.5,4.09162]
[1762476372607,0.0028088,3325.6,3325.5,4.2119]
[1762476372907,0.0028088,3325.6,3325.5,13.3809]
[1762476373109,0.73256,3325.2,3325.1,0.00351877]
[1762476374196,0.1203,3325.4,3325.3,0.73274]
[1762476374401,0.4902088,3325.6,3325.5,0.73272]
[1762476375001,0.0028088,3325.6,3325.5,4.09162]
[1762476375204,0.0028088,3325.6,3325.5,4.2119]
[1762476375399,0.00451093,3325.7,3325.6,0.7327]
[1762476375596,0.12028001,3327.2,3326.9,0.48721]
[1762476375801,0.48718,3327.1,3327.0,0.4872]
[1762476376001,0.4872,3327.0,3326.9,0.48721]
[1762476376202,3.2078,3327.3,3327.2,0.48717]
[1762476376697,0.00300807,3327.3,3327.0,0.1511]
[1762476376898,0.3843,3327.0,3326.9,0.00451093]
[1762476377405,0.50454,3327.0,3326.9,0.00451093]
[1762476378107,0.50454,3327.0,3325.8,3.2078]
[1762476378108,0.48735,3326.0,3325.8,3.2078]
[1762476378508,0.4874,3325.6,3325.5,0.12025999]
[1762476378708,0.4874,3325.6,3325.4,3.2078]
[1762476379201,0.2451,3325.3,3325.2,0.00451093]
[1762476379402,0.48758,3324.4,3324.0,0.1511]
[1762476379607,0.2451,3324.6,3323.5,3.2078]
[1762476379608,3.347,3324.6,3323.5,3.2078]
[1762476379911,0.48763,3324.1,3323.5,3.2078]
[1762476380113,0.48764,3324.0,3323.7,0.48767]